bitfinex-derivatives/quotes_SOLF0:USTF0_20260215
["timestamp","ask_amount","ask_price","bid_price","bid_amount"]
[1771137650145,2.22205501,89.82,89.771,3.82130634]
[1771137650446,5.81681704,89.82,89.771,3.82130634]
[1771137652941,2.22205501,89.83,89.781,3.82130634]
[1771137653735,2.22205501,89.83,89.782,3.82130634]
[1771137655752,2.22205501,89.84,89.791,3.82130634]
[1771137656048,2.22205501,89.82,89.791,3.82130634]
[1771137656247,2.22205501,89.82,89.771,3.82130634]
[1771137657242,2.22205501,89.82,89.774,10.0286]
[1771137658044,2.22205501,89.82,89.774,13.84990634]
[1771137658653,3.59476203,89.826,89.774,13.84990634]
[1771137658654,3.59476203,89.826,89.775,3.82130634]
[1771137658946,3.59476203,89.841,89.791,3.82130634]
[1771137659746,3.59476203,89.841,89.791,13.84790634]
[1771137660351,3.59476203,89.839,89.791,13.84790634]
[1771137660655,3.59476203,89.837,89.791,3.82130634]
[1771137660852,3.59476203,89.829,89.777,3.82130634]
[1771137665352,3.59476203,89.829,89.784,10.0275]
[1771137665551,3.59476203,89.869,89.785,3.82130634]
[1771137665954,3.59476203,89.857,89.807,10.0249]
[1771137666150,3.59476203,89.857,89.8,3.82130634]
[1771137666850,3.59476203,89.857,89.802,3.82130634]
[1771137667854,3.59476203,89.857,89.808,10.0248]
[1771137668057,139.26,89.87,89.809,3.82130634]
[1771137668462,3.59476203,89.873,89.825,3.82130634]
[1771137669359,3.59476203,89.873,89.828,10.0226]
[1771137670356,3.59476203,89.873,89.828,13.84390634]
[1771137673160,3.59476203,89.873,89.817,10.0238]
[1771137673953,3.59476203,89.873,89.817,13.79304867]
[1771137674262,3.59476203,89.873,89.818,3.76924867]
[1771137674459,3.59476203,89.873,89.82,3.76924867]
[1771137677370,143.22,89.872,89.82,3.76924867]
[1771137677570,3.72882685,89.871,89.82,3.76924867]
[1771137677964,3.72882685,89.862,89.79,3.76924867]
[1771137678267,3.72882685,89.849,89.79,3.76924867]
[1771137678664,3.72882685,89.845,89.79,13.79604867]
[1771137678967,3.72882685,89.845,89.79,3.76924867]
[1771137680569,3.72882685,89.843,89.79,3.76924867]
[1771137680768,3.72882685,89.843,89.775,3.76924867]
[1771137680968,3.72882685,89.841,89.775,3.76924867]
[1771137681875,3.72882685,89.825,89.775,3.76924867]
[1771137683273,10.0217,89.836,89.778,3.76924867]
[1771137683474,109.38,89.835,89.778,3.76924867]
[1771137683683,113.10882685,89.835,89.778,3.76924867]
[1771137683974,121.54,89.834,89.78,3.76924867]
[1771137684177,125.26882685,89.834,89.78,3.76924867]
[1771137684574,3.72882685,89.833,89.78,3.76924867]
[1771137686385,3.72882685,89.846,89.782,3.76924867]
[1771137686586,141.26,89.843,89.782,3.76924867]
[1771137686978,141.26,89.843,89.785,3.76924867]
[1771137687178,144.98882685,89.843,89.785,3.76924867]
[1771137687381,3.72882685,89.842,89.785,3.76924867]
[1771137687685,3.72882685,89.84,89.785,3.76924867]
[1771137688775,10.0203,89.849,89.788,3.76924867]
[1771137688973,144.26,89.848,89.788,3.76924867]
[1771137689375,144.26,89.848,89.799,3.76924867]
[1771137689579,3.72882685,89.847,89.799,3.76924867]
[1771137692088,3.72882685,89.865,89.799,3.76924867]
[1771137692285,5.94768579,89.89,89.801,3.76924867]
[1771137692591,141.78,89.889,89.803,3.76924867]
[1771137692792,141.78,89.889,89.827,3.76924867]
[1771137693090,3.72882685,89.888,89.827,3.76924867]
[1771137693486,3.72882685,89.885,89.827,3.76924867]
[1771137693700,3.72882685,89.883,89.827,3.76924867]
[1771137696491,3.72882685,89.883,89.829,3.76924867]
[1771137696694,145.64,89.882,89.829,3.76924867]
[1771137697091,149.36882685,89.882,89.829,3.76924867]
[1771137697497,3.72882685,89.881,89.829,3.76924867]
[1771137701897,146.82,89.88,89.829,3.76924867]
[1771137703600,150.54848439,89.88,89.829,3.76924867]
[1771137703795,3.72848439,89.879,89.829,3.76924867]
[1771137705196,3.72848439,89.874,89.817,10.0238]
[1771137705401,3.72848439,89.874,89.813,3.67421753]
[1771137705592,3.72848439,89.872,89.813,3.67421753]
[1771137707699,3.72848439,89.869,89.813,3.67421753]
[1771137708004,3.72848439,89.867,89.813,3.67421753]
[1771137710604,3.72848439,89.867,89.814,13.69841753]
[1771137711201,3.72848439,89.867,89.815,3.67421753]
[1771137713506,5.94768579,89.89,89.828,3.67421753]
[1771137713507,3.72848439,89.887,89.828,3.67421753]
[1771137713710,3.72848439,89.885,89.828,3.67421753]
[1771137714703,3.72848439,89.883,89.831,3.67421753]
[1771137715099,3.72848439,89.881,89.831,3.67421753]
[1771137716299,3.72848439,89.881,89.758,34.56907734]
[1771137716300,3.72848439,89.872,89.816,3.67421753]
[1771137716504,3.72848439,89.87,89.816,3.67421753]
[1771137717811,3.72848439,89.869,89.816,3.67421753]
[1771137718211,3.72848439,89.869,89.792,20.81293709]
[1771137718212,3.72848439,89.869,89.803,3.67421753]
[1771137718510,3.72848439,89.857,89.803,3.67421753]
[1771137718706,3.72848439,89.855,89.803,3.67421753]
[1771137719308,3.72848439,89.853,89.803,3.67421753]
[1771137719708,10.0201,89.851,89.803,3.67421753]
[1771137719908,3.72848439,89.85,89.803,3.67421753]
[1771137720508,3.72848439,89.85,89.776,423.76324187]
[1771137720509,3.72848439,89.865,89.805,3.67421753]
[1771137720709,3.72848439,89.863,89.805,3.67421753]
[1771137721215,3.72848439,89.861,89.806,10.025]
[1771137721817,3.72848439,89.861,89.807,3.67421753]
[1771137722711,3.72848439,89.875,89.811,3.67421753]
[1771137722903,3.72848439,89.875,89.821,3.67421753]
[1771137723610,2.22012616,89.87,89.821,3.67421753]
[1771137723815,2.22012616,89.87,89.825,3.67421753]
[1771137724015,3.72848439,89.875,89.825,3.67421753]
[1771137726317,2.22012616,89.87,89.825,3.67421753]
[1771137728516,2.22012616,89.88,89.831,3.67421753]
[1771137729717,2.22012616,89.88,89.831,13.69651753]
[1771137729920,2.22012616,89.88,89.832,3.67421753]
[1771137731418,2.22012616,89.88,89.836,3.67421753]
[1771137733722,5.83199171,89.88,89.836,3.67421753]
[1771137735121,3.61186555,89.879,89.836,3.67421753]
[1771137736126,2.22012616,89.87,89.824,3.66515525]
[1771137736915,2.22021619,89.87,89.824,3.66515525]
[1771137738926,5.83208174,89.87,89.824,3.66515525]
[1771137742828,3.61186555,89.869,89.824,3.66515525]
[1771137745429,2.22021619,89.88,89.826,3.66515525]
[1771137745628,3.61186555,89.879,89.826,3.66515525]
[1771137746826,3.61186555,89.879,89.83,3.66515525]
[1771137748728,2.22021619,89.87,89.83,3.66515525]
[1771137749733,3.61186555,89.869,89.83,3.66515525]
[1771137750027,3.61186555,89.869,89.817,24.47809234]
[1771137750223,3.61186555,89.859,89.817,3.66515525]
[1771137756725,151.66,89.871,89.817,3.66515525]
[1771137756936,3.61186555,89.889,89.839,3.66515525]
[1771137757528,2.22021619,89.9,89.841,3.66515525]
[1771137757833,3.61186555,89.901,89.854,3.66515525]
[1771137758224,152.92,89.917,89.854,3.66515525]
[1771137758225,5.83208174,89.9,89.855,3.66515525]
[1771137758529,3.61186555,89.899,89.855,3.66515525]
[1771137759630,319.65636369,89.907,89.855,3.66515525]
[1771137760033,3.61186555,89.906,89.855,3.66515525]
[1771137760230,5.83208174,89.9,89.855,3.66515525]
[1771137760536,3.61186555,89.899,89.855,3.66515525]
[1771137768537,2.22021619,89.91,89.861,3.68399329]
[1771137768738,156.78,89.909,89.861,3.68399329]
[1771137769330,3.8136931,89.899,89.85,10.0201]
[1771137769639,2.22021619,89.89,89.85,13.70409329]
[1771137769834,2.22021619,89.89,89.851,3.68399329]
[1771137771538,3.8136931,89.899,89.851,3.68399329]
[1771137774236,3.8136931,89.899,89.853,3.68399329]
[1771137775841,3.8136931,89.899,89.855,3.68399329]
[1771137776842,156.78,89.909,89.859,3.68399329]
[1771137777044,156.78,89.909,89.861,3.68399329]
[1771137778147,160.5936931,89.909,89.861,3.68399329]
[1771137778346,3.8136931,89.908,89.861,3.68399329]
[1771137780048,3.8136931,89.899,89.858,10.0193]
[1771137782348,3.8136931,89.889,89.85,3.68399329]
[1771137782550,3.8136931,89.889,89.837,3.68399329]
[1771137783556,3.8136931,89.889,89.84,2.22021619]
[1771137783746,3.8136931,89.889,89.843,10.0209]
[1771137783947,2.22021619,89.9,89.844,3.68399329]
[1771137784251,3.8136931,89.902,89.851,3.68399329]
[1771137784653,3.8136931,89.914,89.861,3.68399329]
[1771137785760,3.8136931,89.914,89.863,3.68399329]
[1771137786459,3.8136931,89.914,89.865,3.68399329]
[1771137789760,2.22021619,89.91,89.865,3.68399329]
[1771137791363,6.03390929,89.91,89.865,3.68399329]
[1771137791561,10.0128,89.916,89.865,3.68399329]
[1771137791562,3.8136931,89.899,89.865,3.68399329]
[1771137791860,3.8136931,89.899,89.853,10.0197]
[1771137793559,3.8136931,89.899,89.856,3.91036854]
[1771137793960,3.69146345,89.925,89.856,3.91036854]
[1771137794265,3.69146345,89.925,89.871,3.91036854]
[1771137794266,2.22021619,89.92,89.871,3.91036854]
[1771137794466,3.69146345,89.919,89.871,3.91036854]
[1771137795867,3.69146345,89.919,89.871,13.92806854]
[1771137796765,3.69146345,89.909,89.872,3.91036854]
[1771137800769,2.21788899,89.92,89.872,3.91036854]
[1771137800971,3.69146345,89.923,89.872,3.91036854]
[1771137801770,3.69146345,89.923,89.875,3.91036854]
[1771137801970,3.69146345,89.923,89.877,3.91036854]
[1771137804170,3.69146345,89.919,89.874,10.0174]
[1771137804373,3.69146345,89.919,89.867,20.81293709]
[1771137804779,3.69146345,89.919,89.867,24.72330563]
[1771137805074,3.69146345,89.919,89.868,3.91036854]
[1771137805876,3.69146345,89.919,89.871,3.91036854]
[1771137817393,88.78,89.942,89.842,27.07175196]
[1771137817394,3.69146345,89.933,89.885,3.91036854]
[1771137817594,3.69146345,89.933,89.886,3.91036854]
[1771137818898,3.69146345,89.933,89.888,3.91036854]
[1771137820097,2.21788899,89.93,89.888,3.91036854]
[1771137820294,3.69146345,89.929,89.888,3.91036854]
[1771137821092,3.69146345,89.929,89.859,27.07175196]
[1771137821093,3.69146345,89.941,89.891,3.91036854]
[1771137822691,3.69146345,89.941,89.892,10.0154]
[1771137822896,3.8336319,89.939,89.893,3.79366069]
[1771137823492,3.8336319,89.939,89.896,3.78395301]
[1771137833301,3.68587528,89.929,89.884,13.80025301]
[1771137834506,3.68587528,89.929,89.885,3.78395301]
[1771137838102,3.68587528,89.929,89.89,3.78395301]
[1771137838406,3.68587528,89.941,89.891,3.78395301]
[1771137838600,3.68587528,89.939,89.891,3.78395301]
[1771137839804,3.68587528,89.939,89.895,3.78395301]
[1771137842205,3.68587528,89.929,89.883,13.80035301]
[1771137842405,3.68587528,89.929,89.87,2.21788899]
[1771137842406,3.68587528,89.909,89.87,3.78395301]
[1771137842598,3.68587528,89.909,89.871,10.0178]
[1771137842801,3.68587528,89.909,89.86,2.21788899]
[1771137843002,3.68587528,89.909,89.861,3.78395301]
[1771137843607,3.68587528,89.899,89.843,20.81293709]
[1771137843812,3.68587528,89.899,89.844,3.78395301]
[1771137844310,3.68587528,89.889,89.844,3.78395301]
[1771137851017,3.68587528,89.889,89.842,10.021]
[1771137851411,2.21788899,89.87,89.82,2.21788899]
[1771137851612,3.68587528,89.869,89.82,6.001842]
[1771137851812,3.68587528,89.869,89.821,3.78395301]
[1771137854817,3.68587528,89.869,89.823,3.62214621]
[1771137865226,3.68587528,89.869,89.825,3.62214621]
[1771137870524,3.68587528,89.869,89.815,3.62214621]
[1771137871823,3.68587528,89.869,89.818,3.62214621]
[1771137879529,3.68587528,89.869,89.821,3.62214621]
[1771137884229,3.73768381,89.859,89.811,3.79462885]
[1771137886632,3.73768381,89.859,89.813,3.79462885]
[1771137888344,3.73768381,89.859,89.814,3.79462885]
[1771137888942,3.73768381,89.859,89.802,10.0255]
[1771137889147,3.73768381,89.849,89.803,3.79462885]
[1771137890847,3.73768381,89.849,89.807,3.79462885]
[1771137891750,3.73768381,89.849,89.81,10.0246]
[1771137893757,3.73768381,89.849,89.81,13.81922885]
[1771137895256,3.73768381,89.848,89.786,24.60756594]
[1771137895463,3.73768381,89.829,89.786,3.79462885]
[1771137897058,3.73768381,89.809,89.763,3.79462885]
[1771137897252,3.73768381,89.826,89.781,3.79462885]
[1771137897658,3.73768381,89.819,89.781,3.79462885]
[1771137898058,3.73768381,89.809,89.769,3.79462885]
[1771137898255,3.73768381,89.809,89.75,2.22011366]
[1771137898459,3.73768381,89.799,89.751,3.79462885]
[1771137898863,3.73768381,89.799,89.741,3.79462885]
[1771137899368,3.73768381,89.799,89.744,3.79462885]
[1771137899566,3.73768381,89.779,89.731,3.79462885]
[1771137899766,3.73768381,89.813,89.761,3.79462885]
[1771137900061,2.22011366,89.8,89.761,3.79462885]
[1771137900263,3.73768381,89.799,89.741,3.79462885]
[1771137900464,2.22011366,89.79,89.741,3.79462885]
[1771137900661,3.73768381,89.789,89.741,3.79462885]
[1771137900862,3.73768381,89.779,89.73,3.79462885]
[1771137901765,5.95779747,89.77,89.73,3.79462885]
[1771137901964,3.73768381,89.759,89.717,3.79462885]
[1771137902159,3.73768381,89.759,89.647,27.07175196]
[1771137902160,3.73768381,89.772,89.731,3.79462885]
[1771137903367,3.73768381,89.784,89.731,3.79462885]
[1771137904170,3.73768381,89.796,89.751,3.79462885]
[1771137904470,3.73768381,89.796,89.663,27.07175196]
[1771137904471,3.73768381,89.829,89.771,3.79462885]
[1771137905272,3.73768381,89.843,89.791,3.79462885]
[1771137905964,3.73768381,89.829,89.77,2.22011366]
[1771137906162,2.22011366,89.83,89.78,2.22011366]
[1771137906367,2.22011366,89.83,89.781,3.79462885]
[1771137906665,3.73768381,89.834,89.781,3.79462885]
[1771137906861,3.73768381,89.829,89.771,3.79462885]
[1771137907068,3.73768381,89.829,89.742,88.78]
[1771137907069,3.73768381,89.829,89.781,3.79462885]
[1771137907667,3.73768381,89.829,89.77,2.22011366]
[1771137907870,3.73768381,89.819,89.77,2.22011366]
[1771137908671,191.02891659,89.889,89.77,2.22011366]
[1771137908672,3.73768381,89.823,89.771,3.79462885]
[1771137909369,90.84,89.839,89.771,3.79462885]
[1771137909370,3.73768381,89.819,89.771,3.79462885]
[1771137911878,3.73768381,89.799,89.754,3.79462885]
[1771137912275,3.73768381,89.789,89.738,3.79462885]
[1771137914481,3.73768381,89.789,89.74,2.22011366]
[1771137915080,3.54516565,89.787,89.738,3.79462885]
[1771137915376,3.54516565,89.779,89.724,3.72047651]
[1771137916583,3.54516565,89.779,89.74,5.94059017]
[1771137916771,3.54516565,89.789,89.74,3.72047651]
[1771137917279,3.54516565,89.789,89.741,3.72047651]
[1771137917580,12.24581366,89.8,89.751,3.72047651]
[1771137918189,15.79097931,89.8,89.751,3.72047651]
[1771137918379,3.54516565,89.799,89.751,3.72047651]
[1771137918773,3.54516565,89.795,89.735,3.72047651]
[1771137919080,3.54516565,89.789,89.735,3.72047651]
[1771137919884,3.54516565,89.779,89.728,10.0337]
[1771137920485,3.54516565,89.779,89.73,2.22011366]
[1771137920686,3.54516565,89.779,89.731,3.72047651]
[1771137921089,151.3,89.814,89.711,118.5]
[1771137921090,3.54516565,89.795,89.74,2.22446495]
[1771137921383,3.54516565,89.795,89.741,3.72047651]
[1771137921888,3.54516565,89.795,89.711,139.11649556]
[1771137921889,3.54516565,89.795,89.751,3.72047651]
[1771137924380,3.54516565,89.795,89.741,10.0323]
[1771137924579,3.54516565,89.789,89.741,10.0323]
[1771137925589,3.54516565,89.789,89.735,3.72047651]
[1771137928283,3.54516565,89.789,89.737,3.72047651]
[1771137928688,2.22446495,89.79,89.737,3.72047651]
[1771137928890,2.22446495,89.8,89.747,3.72047651]
[1771137930184,2.22446495,89.81,89.761,3.72047651]
[1771137932495,10.0238,89.818,89.763,3.72047651]
[1771137932896,3.54516565,89.817,89.763,3.72047651]
[1771137933098,3.54516565,89.809,89.763,3.72047651]
[1771137933693,3.54516565,89.809,89.765,10.0296]
[1771137935598,2.22446495,89.82,89.768,3.72047651]
[1771137935896,276.90767676,89.835,89.781,3.72047651]
[1771137936695,276.90767676,89.835,89.784,10.0275]
[1771137936997,276.90767676,89.835,89.785,3.72047651]
[1771137937702,276.90767676,89.835,89.784,10.0275]
[1771137937703,276.90767676,89.835,89.787,3.72047651]
[1771137938998,2.22446495,89.84,89.792,3.72047651]
[1771137939204,3.54516565,89.854,89.792,3.72047651]
[1771137939205,88.8,89.847,89.792,3.72047651]
[1771137939404,2.22446495,89.84,89.792,3.72047651]
[1771137940499,2.22446495,89.84,89.735,27.07175196]
[1771137940500,2.22446495,89.85,89.801,3.72047651]
[1771137941399,2.22446495,89.84,89.803,3.72047651]
[1771137942504,3.59048595,89.839,89.792,10.0265]
[1771137942704,3.59048595,89.829,89.786,3.83522014]
[1771137942907,2.22446495,89.82,89.771,3.83522014]
[1771137943709,3.59048595,89.829,89.778,10.0282]
[1771137943903,2.22446495,89.82,89.778,10.0282]
[1771137945003,3.59048595,89.829,89.778,13.60804293]
[1771137945205,3.59048595,89.829,89.779,3.57984293]
[1771137946110,3.59048595,89.829,89.781,3.57984293]
[1771137947712,2.22446495,89.84,89.791,3.57984293]
[1771137948012,3.75783203,89.848,89.791,3.57984293]
[1771137948809,3.75783203,89.848,89.792,3.57984293]
[1771137949008,2.22446495,89.83,89.792,3.57984293]
[1771137949202,2.22446495,89.82,89.778,3.57984293]
[1771137949406,3.75783203,89.829,89.781,3.57984293]
[1771137950209,3.75783203,89.829,89.782,3.57984293]
[1771137950813,2.22446495,89.84,89.79,2.22446495]
[1771137951011,2.22446495,89.84,89.791,3.57984293]
[1771137951312,3.75783203,89.845,89.791,3.57984293]
[1771137951713,3.75783203,89.845,89.793,3.57984293]
[1771137952511,3.75783203,89.845,89.796,3.57984293]
[1771137952917,3.75783203,89.845,89.801,3.57984293]
[1771137953414,3.75783203,89.845,89.801,13.60544293]
[1771137955417,3.75783203,89.845,89.802,3.57984293]
[1771137960116,2.22446495,89.84,89.802,3.57984293]
[1771137960409,20.0261,89.914,89.811,3.57984293]
[1771137960410,3.75783203,89.857,89.811,3.57984293]
[1771137960618,2.22446495,89.84,89.797,3.57984293]
[1771137961217,3.75783203,89.839,89.797,3.57984293]
[1771137961419,5.98229698,89.83,89.783,3.57984293]
[1771137961610,20.0261,89.914,89.79,2.22446495]
[1771137961611,3.75783203,89.844,89.79,2.22446495]
[1771137961821,3.75783203,89.844,89.801,3.57984293]
[1771137963219,10.0192,89.859,89.801,3.57984293]
[1771137963421,3.75783203,89.87,89.821,3.57984293]
[1771137964827,2.22446495,89.86,89.821,3.57984293]
[1771137965119,3.75783203,89.869,89.821,3.57984293]
[1771137968718,3.75783203,89.869,89.824,3.57984293]
[1771137968918,3.75783203,89.879,89.831,3.57984293]
[1771137969121,152.8,89.903,89.816,3.57984293]
[1771137969122,3.75783203,89.869,89.816,3.57984293]
[1771137972423,3.75783203,89.869,89.818,3.57984293]
[1771137972727,2.22446495,89.86,89.818,3.57984293]
[1771137972925,295.11455228,89.921,89.821,3.57984293]
[1771137972926,2.22446495,89.88,89.821,3.57984293]
[1771137973116,3.75783203,89.881,89.831,3.81439919]
[1771137974529,2.22446495,89.88,89.831,3.81439919]
[1771137975224,2.22446495,89.88,89.812,20.61649556]
[1771137975225,3.73273269,89.897,89.841,3.81439919]
[1771137975426,3.73273269,89.934,89.88,2.22446495]
[1771137975729,5.95719764,89.95,89.891,3.81439919]
[1771137975924,3.73273269,89.929,89.874,3.81439919]
[1771137976119,2.22446495,89.91,89.874,3.81439919]
[1771137977827,2.22446495,89.9,89.856,3.81439919]
[1771137978025,2.22446495,89.89,89.841,3.81439919]
[1771137978525,3.73273269,89.917,89.861,10.0189]
[1771137978725,2.22446495,89.91,89.861,13.83329919]
[1771137979425,3.73273269,89.909,89.861,13.83329919]
[1771137979627,2.22446495,89.9,89.861,13.83329919]
[1771137982035,3.73273269,89.909,89.861,13.83329919]
[1771137984139,3.73273269,89.925,89.88,2.21826349]
[1771137984332,5.95099618,89.94,89.881,3.81439919]
[1771137984539,3.73273269,89.94,89.891,3.81439919]
[1771137985334,3.73273269,89.94,89.9,2.21826349]
[1771137988235,3.73273269,89.94,89.891,3.81439919]
[1771137989331,3.73273269,89.939,89.891,3.81439919]
[1771137990429,3.73273269,89.929,89.886,10.0161]
[1771137991137,3.73273269,89.929,89.88,2.21826349]
[1771137991343,3.73273269,89.929,89.877,3.81439919]
[1771137992743,3.73273269,89.929,89.878,10.017]
[1771137993840,3.73273269,89.919,89.866,10.0184]
[1771137994047,2.21826349,89.91,89.866,10.0184]
[1771137994542,3.73273269,89.909,89.85,2.21826349]
[1771137994847,3.73273269,89.899,89.851,3.81439919]
[1771137995843,3.73273269,89.899,89.852,10.0199]
[1771137996545,3.73273269,89.899,89.851,3.81439919]
[1771137996845,2.21826349,89.89,89.851,3.81439919]
[1771137997648,2.21826349,89.87,89.82,2.21826349]
[1771137997846,2.21826349,89.87,89.817,10.0237]
[1771137997847,2.21826349,89.83,89.755,20.61649556]
[1771137998039,2.21826349,89.85,89.79,2.21826349]
[1771137998844,3.73273269,89.852,89.77,5.94946959]
[1771137999047,3.73273269,89.849,89.75,5.94946959]
[1771137999650,3.73273269,89.849,89.751,1.4240506]
[1771138000850,3.73273269,89.848,89.779,10.028]
[1771138001745,10.0207,89.845,89.779,10.028]
[1771138001952,3.63507804,89.844,89.779,10.028]
[1771138003851,3.63507804,89.844,89.779,11.51367982]
[1771138004047,3.57294051,89.856,89.785,1.48567982]
[1771138005151,3.57294051,89.849,89.785,1.48567982]
[1771138005749,3.57294051,89.842,89.785,1.48567982]
[1771138007058,3.57294051,89.857,89.785,1.48567982]
[1771138007352,3.57294051,89.857,89.791,1.49929631]
[1771138008655,3.57294051,89.835,89.775,1.47872691]
[1771138008854,3.57294051,89.829,89.731,1.47872691]
[1771138009758,3.57294051,89.821,89.753,1.47872691]
[1771138011760,3.57294051,89.821,89.765,10.0296]
[1771138013051,3.57294051,89.821,89.765,11.64176756]
[1771138013857,3.57294051,89.821,89.766,1.61216756]
[1771138014052,3.57294051,89.837,89.77,1.61216756]
[1771138014257,3.57294051,89.829,89.743,1.61216756]
[1771138014655,5.94946959,89.81,89.743,1.61216756]
[1771138014856,3.57294051,89.807,89.744,10.0319]
[1771138015159,3.57294051,89.807,89.743,1.61216756]
[1771138016363,3.57294051,89.801,89.743,1.61216756]
[1771138017162,13.59884051,89.799,89.743,1.61216756]
[1771138018957,3.57294051,89.799,89.746,1.32003862]
[1771138020760,3.57294051,89.815,89.76,1.30784254]
[1771138020969,88.8,89.834,89.744,1.30784254]
[1771138020970,3.57294051,89.799,89.744,1.30784254]
[1771138021263,3.57294051,89.779,89.713,1.30784254]
[1771138021461,3.57294051,89.769,89.713,1.30784254]
[1771138022258,2.22284468,89.76,89.713,1.30784254]
[1771138023062,3.57294051,89.759,89.664,1.24709404]
[1771138023263,3.57294051,89.759,89.664,116.28709404]
[1771138023464,3.57294051,89.739,89.664,1.24709404]
[1771138023663,3.57294051,89.739,89.646,1.24709404]
[1771138023866,3.57294051,89.719,89.646,1.24709404]
[1771138024763,3.57294051,89.715,89.646,1.24709404]
[1771138025362,3.57294051,89.712,89.635,10.0442]
[1771138025568,1.94062144,89.741,89.612,236.90364027]
[1771138025569,3.57294051,89.699,89.612,236.90364027]
[1771138025962,3.57294051,89.699,89.544,156.4023]
[1771138025963,3.57294051,89.675,89.587,1.28155519]
[1771138026169,3.57294051,89.659,89.607,7.97032503]
[1771138026557,3.57294051,89.657,89.607,7.97032503]
[1771138028770,3.57294051,89.656,89.607,7.97032503]
[1771138029367,3.57294051,89.654,89.569,1.24609948]
[1771138029863,10.0429,89.647,89.569,1.24609948]
[1771138030061,3.57294051,89.646,89.571,1.54416915]
[1771138030473,3.57294051,89.646,89.573,1.47037626]
[1771138031271,3.57294051,89.663,89.591,1.47037626]
[1771138031872,3.57294051,89.663,89.59,5.96147073]
[1771138031873,3.57294051,89.663,89.593,1.47037626]
[1771138032473,3.57294051,89.683,89.593,1.47037626]
[1771138032873,3.57294051,89.683,89.6,1.47612835]
[1771138033172,3.57294051,89.683,89.611,1.4892427]
[1771138033477,3.53724435,89.681,89.611,1.4892427]
[1771138034465,3.53724435,89.681,89.613,1.48894782]
[1771138034671,3.53724435,89.719,89.631,1.47196499]
[1771138035068,3.53724435,89.719,89.644,1.47196499]
[1771138035777,3.53724435,89.716,89.648,1.47196499]
[1771138035975,3.53724435,89.716,89.629,1.47196499]
[1771138036772,3.53724435,89.7,89.629,1.47196499]
[1771138037574,3.53724435,89.697,89.629,1.47196499]
[1771138038781,3.53724435,89.691,89.629,1.47196499]
[1771138041983,3.53724435,89.685,89.609,1.48989907]
[1771138042680,3.53724435,89.669,89.609,1.48989907]
[1771138042883,3.53724435,89.669,89.581,88.82]
[1771138042884,3.53724435,89.688,89.611,1.49663404]
[1771138043586,3.53724435,89.706,89.641,1.49663404]
[1771138043987,3.53724435,89.706,89.646,1.49663404]
[1771138044281,3.53724435,89.739,89.646,1.49663404]
[1771138045889,3.53724435,89.722,89.649,1.47151049]
[1771138046883,3.53724435,89.718,89.649,1.47151049]
[1771138047491,13.57234435,89.716,89.649,1.47151049]
[1771138048388,3.53724435,89.715,89.649,1.47151049]
[1771138051186,3.53724435,89.711,89.649,1.47151049]
[1771138051792,3.53724435,89.695,89.625,10.0452]
[1771138052681,3.53724435,89.69,89.625,10.0452]
[1771138053187,10.0383,89.688,89.625,10.0452]
[1771138053393,10.0383,89.688,89.616,1.37817117]
[1771138053394,3.53724435,89.687,89.616,1.37817117]
[1771138054894,3.53724435,89.683,89.616,1.37817117]
[1771138055390,3.53724435,89.673,89.604,1.41285017]
[1771138056496,3.53724435,89.67,89.593,1.4240449]
[1771138057094,3.53724435,89.663,89.604,10.0476]
[1771138058595,3.53724435,89.663,89.61,11.55578855]
[1771138058796,3.53724435,89.663,89.611,1.50888855]
[1771138059198,3.53724435,89.663,89.599,10.0482]
[1771138059594,3.53724435,89.663,89.599,11.55708855]
[1771138061699,3.53724435,89.663,89.606,10.0474]
[1771138063501,3.79084892,89.66,89.6,1.50567778]
[1771138064799,3.79084892,89.658,89.6,1.50567778]
[1771138066403,3.79084892,89.656,89.6,1.50567778]
[1771138066605,3.79084892,89.656,89.585,10.0497]
[1771138066998,3.79084892,89.649,89.585,10.0497]
[1771138067601,3.79084892,89.649,89.566,20.50294547]
[1771138067803,3.79084892,89.629,89.547,1.52000298]
[1771138068203,3.79084892,89.613,89.549,1.52000298]
[1771138069909,3.79084892,89.61,89.551,10.0535]
[1771138071212,5.96701613,89.63,89.549,1.52000298]
[1771138071213,3.79084892,89.608,89.549,1.52000298]
[1771138072109,3.79084892,89.608,89.526,20.50294547]
[1771138072110,3.79084892,89.592,89.528,1.74489565]
[1771138073697,3.79084892,89.592,89.529,10.056]
[1771138073902,3.79084892,89.592,89.53,1.83728123]
[1771138074803,3.79084892,89.59,89.53,1.83728123]
[1771138075204,5.96701613,89.63,89.516,115.74]
[1771138075205,3.79084892,89.609,89.532,1.92512687]
[1771138075407,3.79084892,89.609,89.534,1.92512687]
[1771138076102,3.79084892,89.609,89.546,1.92512687]
[1771138077004,10.0472,89.608,89.546,1.92512687]
[1771138077206,3.79084892,89.607,89.546,1.92512687]
[1771138078715,3.79084892,89.605,89.546,1.92512687]
[1771138081006,9.75786505,89.62,89.548,1.91998047]
[1771138081205,3.79084892,89.62,89.548,1.91998047]
[1771138081405,3.79084892,89.62,89.526,88.84]
[1771138081406,3.79084892,89.656,89.561,1.91998047]